bitfinex/quotes_BTCUSD_20240803
["timestamp","ask_amount","ask_price","bid_price","bid_amount"]
[1722723837293,0.66606856,60743.0,60742.0,0.012]
[1722723837709,0.99532456,60743.0,60742.0,0.012]
[1722723838000,0.66606856,60743.0,60742.0,0.012]
[1722723838226,0.66606856,60743.0,60742.0,0.006]
[1722723838474,0.33681256,60743.0,60742.0,0.006]
[1722723838714,0.17318456,60743.0,60742.0,0.023]
[1722723838931,0.17318456,60743.0,60742.0,0.18763]
[1722723839565,0.17318456,60743.0,60742.0,0.023]
[1722723839963,0.17318456,60743.0,60742.0,0.025]
[1722723840371,0.17218456,60743.0,60742.0,0.18963]
[1722723840575,0.17218456,60743.0,60742.0,0.19063]
[1722723841367,0.07398456,60743.0,60742.0,0.849152]
[1722723841569,0.00028456,60743.0,60742.0,0.849152]
[1722723842379,0.00028456,60743.0,60742.0,1.178413]
[1722723842797,0.00028456,60743.0,60742.0,1.34416389]
[1722723844557,0.08178456,60743.0,60742.0,0.519891]
[1722723844783,0.08178456,60743.0,60742.0,0.849152]
[1722723845272,1.19e-05,60743.0,60742.0,1.34416389]
[1722723852660,1.19e-05,60743.0,60742.0,1.34216389]
[1722723853169,1.19e-05,60743.0,60742.0,1.34716389]
[1722723853612,1.19e-05,60743.0,60742.0,1.34616389]
[1722723853956,1.19e-05,60743.0,60742.0,1.35116389]
[1722723854151,1.19e-05,60743.0,60742.0,1.43825433]
[1722723855010,0.0739119,60743.0,60742.0,1.10899333]
[1722723855228,0.1671119,60743.0,60742.0,1.10910775]
[1722723855643,0.1671119,60743.0,60742.0,0.12020486]
[1722723855817,0.1671119,60743.0,60742.0,0.033]
[1722723856022,0.1671119,60743.0,60742.0,0.526891]
[1722723856413,0.1671119,60743.0,60742.0,0.94398561]
[1722723856414,1.19e-05,60743.0,60742.0,0.94398561]
[1722723857087,1.19e-05,60743.0,60742.0,1.4389975]
[1722723859368,1.19e-05,60743.0,60742.0,1.43888749]
[1722723861056,0.08291805,60749.0,60747.0,0.164616]
[1722723861200,0.06951629,60750.0,60748.0,0.023]
[1722723862385,0.06951629,60750.0,60748.0,0.187614]
[1722723862587,0.07151629,60750.0,60748.0,0.187614]
[1722723863453,0.07151629,60750.0,60748.0,0.023]
[1722723864026,0.0776,60749.0,60748.0,0.023]
[1722723864710,0.002,60750.0,60749.0,0.164611]
[1722723864909,0.174809,60753.0,60750.0,0.164608]
[1722723865112,0.174809,60753.0,60751.0,0.023]
[1722723865373,0.010208,60753.0,60751.0,0.023]
[1722723865551,0.010208,60753.0,60752.0,0.49381]
[1722723865756,0.010208,60753.0,60752.0,0.846017]
[1722723867178,0.010208,60753.0,60752.0,1.34097489]
[1722723867694,0.010208,60753.0,60752.0,1.42800025]
[1722723868066,0.010208,60753.0,60752.0,1.43300025]
[1722723868226,0.010208,60753.0,60752.0,1.43100025]
[1722723868429,0.010208,60753.0,60752.0,1.42800025]
[1722723868627,0.010208,60753.0,60752.0,1.43800025]
[1722723868832,0.010208,60753.0,60752.0,1.44100025]
[1722723869233,0.010208,60753.0,60752.0,1.35397489]
[1722723870232,0.179908,60753.0,60752.0,1.03776789]
[1722723871924,0.010208,60753.0,60752.0,1.03776789]
[1722723874301,0.0096644,60753.0,60752.0,1.03776789]
[1722723874507,0.00940805,60753.0,60752.0,1.03776789]
[1722723875109,0.00940805,60753.0,60752.0,1.36697489]
[1722723876505,0.00940805,60753.0,60752.0,1.45332293]
[1722723876913,0.00940805,60753.0,60752.0,1.12411593]
[1722723876914,0.08530805,60753.0,60752.0,1.12411593]
[1722723877541,0.08530805,60753.0,60752.0,1.03776789]
[1722723877742,0.08530805,60753.0,60752.0,1.12355378]
[1722723879504,0.1682261,60753.0,60752.0,0.049]
[1722723879783,0.7558271,60753.0,60752.0,0.026]
[1722723879981,0.4266261,60753.0,60752.0,0.026]
[1722723880257,0.7558271,60753.0,60752.0,0.026]
[1722723880726,0.7558271,60753.0,60752.0,0.013]
[1722723881151,0.7558271,60753.0,60752.0,0.006]
[1722723881152,1.0850281,60753.0,60752.0,0.006]
[1722723881353,1.5905291,60753.0,60752.0,0.006]
[1722723881533,1.5905291,60753.0,60752.0,0.012]
[1722723882149,1.5905291,60753.0,60752.0,0.006]
[1722723882356,1.63988755,60753.0,60752.0,0.006]
[1722723882565,1.63988835,60753.0,60752.0,0.007]
[1722723882911,1.63988835,60753.0,60752.0,0.001]
[1722723883317,1.5609703,60753.0,60752.0,0.002]
[1722723883514,1.56097098,60753.0,60752.0,0.001]
[1722723883717,0.1708,60745.0,60742.0,0.165542]
[1722723883918,0.1708,60745.0,60743.0,0.023]
[1722723884351,0.1708,60745.0,60744.0,0.164625]
[1722723884690,0.1708,60748.0,60747.0,0.164617]
[1722723884870,0.1708,60752.0,60747.0,0.352234]
[1722723885092,0.1708,60752.0,60750.0,0.164607]
[1722723885423,0.17052837,60752.0,60751.0,0.023]
[1722723886058,0.33513137,60752.0,60751.0,0.023]
[1722723886256,0.164617,60747.0,60746.0,0.023]
[1722723886457,0.899497,60746.0,60745.0,0.023]
[1722723886704,0.1763,60748.0,60744.0,0.003]
[1722723886705,0.570267,60745.0,60744.0,0.003]
[1722723886833,1.39450789,60745.0,60744.0,0.003]
[1722723887037,1.91755975,60745.0,60744.0,0.005]
[1722723887273,1.84352364,60745.0,60744.0,0.005]
[1722723887478,1.152396,60743.0,60742.0,0.000913]
[1722723887740,1.3633244,60743.0,60742.0,0.000913]
[1722723888093,1.28040635,60743.0,60742.0,0.000913]
[1722723888298,1.231096,60743.0,60742.0,0.000913]
[1722723888500,1.324596,60743.0,60742.0,0.000913]
[1722723889305,1.325596,60743.0,60742.0,0.000913]
[1722723889836,1.328596,60743.0,60742.0,0.000913]
[1722723902195,1.82360289,60743.0,60742.0,0.000913]
[1722723902397,1.90283267,60743.0,60742.0,0.000913]
[1722723902597,2.25670357,60743.0,60742.0,0.000913]
[1722723902811,2.38131846,60743.0,60742.0,0.000913]
[1722723903032,2.28285889,60743.0,60742.0,0.000913]
[1722723903206,1.59434689,60743.0,60742.0,0.000913]
[1722723903495,1.428596,60743.0,60742.0,0.000913]
[1722723903869,1.424596,60743.0,60742.0,0.000913]
[1722723904227,1.432596,60743.0,60742.0,0.002913]
[1722723904429,1.429596,60743.0,60742.0,0.001913]
[1722723904636,1.424596,60743.0,60742.0,0.000913]
[1722723904819,1.432596,60743.0,60742.0,0.002913]
[1722723905424,1.00334,60743.0,60742.0,0.002913]
[1722723905669,0.674084,60743.0,60742.0,0.025913]
[1722723905870,0.008,60743.0,60742.0,0.025913]
[1722723906244,0.008,60743.0,60742.0,0.190543]
[1722723906781,0.008,60743.0,60742.0,0.519804]
[1722723906923,0.164615,60748.0,60744.0,0.164624]
[1722723907123,0.164615,60748.0,60745.0,0.023]
[1722723907124,0.164616,60748.0,60745.0,0.023]
[1722723907406,0.1721,60751.0,60747.0,0.164616]
[1722723907540,0.00083,60752.0,60749.0,0.16461]
[1722723907745,0.165434,60752.0,60750.0,0.023]
[1722723907942,0.165434,60752.0,60748.0,0.187612]
[1722723908148,0.330038,60752.0,60748.0,0.023]
[1722723908347,0.330038,60752.0,60743.0,0.329252]
[1722723908572,0.164612,60749.0,60745.0,0.164621]
[1722723908750,0.16461,60750.0,60746.0,0.187619]
[1722723908943,0.16461,60750.0,60746.0,0.164619]
[1722723909148,0.16461,60750.0,60747.0,0.023]
[1722723910214,0.329218,60750.0,60747.0,0.023]
[1722723910407,0.164609,60750.0,60746.0,0.187618]
[1722723910859,0.166609,60750.0,60746.0,0.187618]
[1722723911056,0.167609,60750.0,60746.0,0.187618]
[1722723911405,0.166609,60750.0,60746.0,0.187618]
[1722723911818,0.001,60750.0,60747.0,0.164616]
[1722723912016,0.001,60750.0,60748.0,0.023]
[1722723912428,0.165609,60750.0,60748.0,0.023]
[1722723912634,0.001,60750.0,60748.0,0.023]
[1722723912853,0.164607,60751.0,60748.0,0.023]
[1722723913376,0.003,60750.0,60749.0,0.164611]
[1722723913599,0.001,60750.0,60749.0,0.187611]
[1722723913965,0.001,60750.0,60749.0,0.023]
[1722723913966,0.002,60750.0,60749.0,0.023]
[1722723914120,0.002,60750.0,60749.0,0.990857]
[1722723914342,0.002,60750.0,60749.0,1.34308]
[1722723914510,0.002,60750.0,60749.0,1.50883089]
[1722723914711,0.00083,60752.0,60751.0,0.164606]
[1722723914911,0.00083,60752.0,60751.0,0.84603]
[1722723915095,0.00083,60752.0,60751.0,1.175242]
[1722723916673,0.00083,60752.0,60751.0,1.34099289]
[1722723917285,0.00055764,60752.0,60751.0,1.34299289]
[1722723917712,0.00055764,60752.0,60751.0,1.34099289]
[1722723917870,0.00055764,60752.0,60751.0,1.34199289]
[1722723918073,0.00055764,60752.0,60751.0,1.35499289]
[1722723918371,0.00155764,60752.0,60751.0,1.36899289]
[1722723920544,0.00155764,60752.0,60751.0,1.86600489]
[1722723920879,0.00155764,60752.0,60751.0,1.95187787]
[1722723921759,0.00155764,60752.0,60751.0,1.96187313]
[1722723921994,0.00155764,60752.0,60751.0,1.95187313]
[1722723922120,0.00155764,60752.0,60751.0,1.53679289]
[1722723922329,0.00155764,60752.0,60751.0,1.36899289]
[1722723923132,0.00155764,60752.0,60751.0,1.79450489]
[1722723923331,0.00155764,60752.0,60751.0,1.98160489]
[1722723924910,0.00155764,60752.0,60751.0,1.97160489]
[1722723925513,0.00155764,60752.0,60751.0,1.46899289]
[1722723925712,0.00155764,60752.0,60751.0,1.36899289]
[1722723926362,0.00155764,60752.0,60751.0,1.03978089]
[1722723926562,0.08345764,60752.0,60751.0,0.028]
[1722723926783,0.18455764,60752.0,60751.0,0.028]
[1722723926940,0.18455764,60752.0,60751.0,0.192606]
[1722723927105,0.18455764,60752.0,60751.0,0.85103]
[1722723927306,0.00155764,60752.0,60751.0,0.85103]
[1722723928091,0.00155764,60752.0,60751.0,0.87403]
[1722723929600,0.00155764,60752.0,60751.0,0.544818]
[1722723930640,0.00155764,60752.0,60751.0,0.87403]
[1722723931031,0.00155764,60752.0,60751.0,0.544818]
[1722723931246,0.59066764,60752.0,60751.0,0.051]
[1722723931446,0.67126764,60752.0,60751.0,0.051]
[1722723931649,0.1941647,60752.0,60751.0,0.051]
[1722723931861,0.1941647,60752.0,60751.0,0.544818]
[1722723931979,0.1941647,60752.0,60751.0,0.87403]
[1722723932190,0.00155764,60752.0,60751.0,1.203242]
[1722723932392,0.00155764,60752.0,60751.0,1.36899289]
[1722723936623,0.00155764,60752.0,60751.0,1.03978089]
[1722723936845,0.17745764,60752.0,60751.0,0.71056889]
[1722723937042,0.17745764,60752.0,60751.0,1.03978089]
[1722723937450,0.17718478,60752.0,60751.0,1.03978089]
[1722723938229,0.09658478,60752.0,60751.0,1.03978089]
[1722723938473,0.00128478,60752.0,60751.0,1.36899289]
[1722723938771,0.00128478,60752.0,60751.0,1.54589289]
[1722723939133,0.00128478,60752.0,60751.0,1.63306643]
[1722723939537,0.00128478,60752.0,60751.0,1.73306643]
[1722723942171,0.00128478,60752.0,60751.0,1.74327443]
[1722723942375,0.00128478,60752.0,60751.0,1.56637443]
[1722723942582,0.00128478,60752.0,60751.0,1.23716243]
[1722723942780,0.00128478,60752.0,60751.0,0.79795816]
[1722723943224,0.01800987,60752.0,60751.0,1.12717016]
[1722723943544,0.00128478,60752.0,60751.0,1.12717016]
[1722723946234,0.00128478,60752.0,60751.0,1.03978089]
[1722723946428,0.00128478,60752.0,60751.0,1.12749469]
[1722723946634,0.00128478,60752.0,60751.0,1.03978089]
[1722723946851,0.00128478,60752.0,60751.0,1.12749481]
[1722723948469,0.00128478,60752.0,60751.0,1.45670681]
[1722723949461,0.00128478,60752.0,60751.0,1.12749481]
[1722723949900,0.00128478,60752.0,60751.0,1.45670681]
[1722723951232,0.00128478,60752.0,60751.0,1.55890681]
[1722723952271,0.00128478,60752.0,60751.0,1.45670681]
[1722723952972,0.00128478,60752.0,60751.0,1.12749481]
[1722723953520,0.00128478,60752.0,60751.0,1.1278481]
[1722723953789,0.00128478,60752.0,60751.0,1.4570601]
[1722723954574,0.00101176,60752.0,60751.0,1.4570601]
[1722723957098,0.00101176,60752.0,60751.0,1.36899289]
[1722723957382,0.00101176,60752.0,60751.0,1.45740126]
[1722723957584,0.00101176,60752.0,60751.0,1.36899289]
[1722723957769,0.00101176,60752.0,60751.0,1.36990589]
[1722723958176,0.00101176,60752.0,60751.0,1.45831388]
[1722723958337,0.00101176,60752.0,60751.0,1.36990589]
[1722723959622,0.00101176,60752.0,60751.0,1.45815858]
[1722723961013,0.00101176,60752.0,60751.0,1.12894658]
[1722723961223,0.00101176,60752.0,60751.0,1.45815858]
[1722723961918,0.17291176,60752.0,60751.0,1.04069389]
[1722723962092,0.17291176,60752.0,60751.0,1.12934297]
[1722723963443,0.17291176,60752.0,60751.0,0.14056208]
[1722723963673,0.99592876,60752.0,60751.0,0.028913]
[1722723963889,1.33897048,60752.0,60751.0,0.028913]
[1722723964302,1.38837919,60752.0,60751.0,0.028913]
[1722723964472,1.33897048,60752.0,60751.0,0.028913]
[1722723964690,1.52888142,60752.0,60751.0,0.028913]
[1722723965178,1.5248956,60752.0,60751.0,0.028913]
[1722723965488,1.40909761,60752.0,60751.0,0.014913]
[1722723965815,1.45848987,60752.0,60751.0,0.014913]
[1722723966153,1.46347898,60752.0,60751.0,0.015913]
[1722723966359,1.41335872,60752.0,60751.0,0.001913]
[1722723966673,1.47073952,60752.0,60751.0,0.002913]
[1722723967140,1.42135872,60752.0,60751.0,0.002913]
[1722723967341,1.35095872,60752.0,60751.0,0.002913]
[1722723967746,1.40033952,60752.0,60751.0,0.002913]
[1722723968097,1.35095872,60752.0,60751.0,0.002913]
[1722723972248,2.07098231,60752.0,60751.0,0.002913]
[1722723972433,1.499896,60743.0,60742.0,0.000913]
[1722723972851,1.51355562,60743.0,60742.0,0.000913]
[1722723973795,1.51355562,60743.0,60742.0,0.002913]
[1722723974986,1.51355562,60743.0,60742.0,0.004913]
[1722723975780,1.51355562,60743.0,60742.0,0.002913]
[1722723976106,1.51455562,60743.0,60742.0,0.000913]
[1722723976301,1.51655562,60743.0,60742.0,0.000913]
[1722723977344,1.51628326,60743.0,60742.0,0.000913]
[1722723980278,0.68177126,60743.0,60742.0,0.000913]
[1722723982039,1.01102726,60743.0,60742.0,0.000913]
[1722723982248,1.35277815,60743.0,60742.0,0.000913]
[1722723982418,1.79203415,60743.0,60742.0,0.000913]
[1722723982632,1.78203415,60743.0,60742.0,0.000913]
[1722723983077,1.89856249,60743.0,60742.0,0.000913]
[1722723983582,1.89556249,60743.0,60742.0,0.000913]
[1722723983872,1.90456249,60743.0,60742.0,0.001913]
[1722723984501,1.9037459,60743.0,60742.0,0.001913]
[1722723984638,1.90364282,60743.0,60742.0,0.001913]
[1722723984840,1.90364282,60743.0,60742.0,0.002913]
[1722723984841,1.79421756,60743.0,60742.0,0.002913]
[1722723986657,2.12347356,60743.0,60742.0,0.002913]
[1722723986890,2.13347356,60743.0,60742.0,0.002913]
[1722723987092,2.24960865,60743.0,60742.0,0.002913]
[1722723987292,1.91035265,60743.0,60742.0,0.002913]
[1722723987489,1.92035265,60743.0,60742.0,0.002913]
[1722723987695,1.91035265,60743.0,60742.0,0.002913]
[1722723987862,2.23960865,60743.0,60742.0,0.002913]
[1722723988327,2.12347356,60743.0,60742.0,0.002913]
[1722723988521,1.90977305,60743.0,60742.0,0.002913]
[1722723989487,1.91060305,60743.0,60742.0,0.002913]
[1722723991882,1.91074089,60743.0,60742.0,0.002913]
[1722723992229,1.79504756,60743.0,60742.0,0.002913]
[1722723992430,1.91074088,60743.0,60742.0,0.002913]
[1722723994302,1.46898999,60743.0,60742.0,0.002913]
[1722723994518,1.56898999,60743.0,60742.0,0.002913]
[1722723994874,1.13973399,60743.0,60742.0,0.002913]
[1722723995274,1.46898999,60743.0,60742.0,0.002913]
[1722723995480,1.46898594,60743.0,60742.0,0.002913]
[1722723996072,1.64498594,60743.0,60742.0,0.002913]
[1722723996468,1.31572994,60743.0,60742.0,0.002913]
[1722723997111,1.64498594,60743.0,60742.0,0.002913]
[1722723997807,1.31572994,60743.0,60742.0,0.002913]
[1722723998308,1.64498594,60743.0,60742.0,0.002913]
[1722723998764,1.13972994,60743.0,60742.0,0.002913]
[1722723999091,1.14052254,60743.0,60742.0,0.002913]
[1722723999548,1.46977854,60743.0,60742.0,0.002913]
[1722723999717,1.14052254,60743.0,60742.0,0.002913]
[1722724000319,1.46977854,60743.0,60742.0,0.002913]
[1722724000524,1.14052254,60743.0,60742.0,0.002913]
[1722724002154,0.14697149,60743.0,60742.0,0.002913]
[1722724002390,0.14697149,60743.0,60742.0,0.025913]
[1722724002391,0.03048962,60743.0,60742.0,0.025913]
[1722724002599,0.03048962,60743.0,60742.0,0.519804]
[1722724002800,0.01683,60743.0,60742.0,0.695604]
[1722724003564,0.01683,60743.0,60742.0,0.694604]
[1722724003565,0.00783,60743.0,60742.0,0.694604]
[1722724003843,0.00083,60743.0,60742.0,0.105813]
[1722724004034,0.01883,60743.0,60742.0,0.519804]
[1722724004239,0.0214822,60743.0,60742.0,0.189543]
[1722724004438,0.00755503,60743.0,60742.0,0.518804]
[1722724004640,0.01520831,60743.0,60742.0,0.517804]
[1722724004844,0.00155503,60743.0,60742.0,0.517804]
[1722724005025,0.01520831,60743.0,60742.0,0.188543]
[1722724005222,0.00155503,60743.0,60742.0,0.188543]
[1722724005424,1.71563225,60743.0,60742.0,0.000913]
[1722724005629,1.71563225,60743.0,60730.0,0.00969015]
[1722724005630,0.675081,60731.0,60730.0,0.00969015]
[1722724005958,0.675081,60731.0,60720.0,0.49750831]
[1722724005959,0.1811,60731.0,60722.0,0.1758]
[1722724006107,0.1811,60731.0,60723.0,0.00157439]
[1722724006108,0.01495849,60731.0,60723.0,0.00157439]
[1722724006314,0.01495849,60731.0,60726.0,0.329343]
[1722724006538,0.164655,60733.0,60727.0,0.164671]
[1722724006697,0.01488172,60730.0,60722.0,0.1758]
[1722724006900,0.164663,60730.0,60724.0,0.164678]
[1722724007097,0.01487302,60729.0,60725.0,0.187676]
[1722724007410,0.164663,60730.0,60725.0,0.187676]
[1722724007615,0.01486613,60729.0,60725.0,0.187676]
[1722724008154,0.01486613,60729.0,60725.0,0.023]
[1722724008155,0.164674,60726.0,60725.0,0.023]
[1722724008384,0.329337,60728.0,60723.0,0.023]
[1722724008540,0.164674,60726.0,60723.0,0.023]
[1722724008733,0.01487993,60725.0,60723.0,0.023]
[1722724009538,0.164677,60725.0,60723.0,0.023]
[1722724009716,0.01487122,60724.0,60723.0,0.023]
[1722724010341,0.17955022,60724.0,60723.0,0.028]
[1722724010541,0.01487122,60724.0,60723.0,0.023]
[1722724010968,0.04936724,60737.0,60725.0,0.164676]
[1722724011186,0.164666,60729.0,60726.0,0.023]
[1722724011466,0.17952983,60728.0,60726.0,0.023]
[1722724012531,0.17952983,60728.0,60716.0,0.0755]
[1722724012532,0.1758,60727.0,60716.0,0.0755]
[1722724012747,0.1758,60727.0,60709.0,0.04933415]
[1722724012748,0.32937,60722.0,60714.0,0.330324]
[1722724012954,0.329375,60721.0,60716.0,0.1647]
[1722724013160,0.164693,60719.0,60715.0,0.164703]
[1722724013508,0.01490516,60718.0,60715.0,0.164703]
[1722724014109,0.01490516,60718.0,60716.0,0.16627539]
[1722724014447,0.01490516,60718.0,60717.0,0.00157439]
[1722724014657,0.01490516,60718.0,60717.0,0.023]
[1722724014823,0.01490516,60718.0,60715.0,0.023]
[1722724015207,0.01590516,60718.0,60716.0,0.1647]
[1722724015485,0.01590516,60718.0,60717.0,0.023]
[1722724015758,0.01690516,60718.0,60717.0,0.033]
[1722724016125,0.01590516,60718.0,60717.0,0.023]
[1722724016332,0.01690516,60718.0,60717.0,0.023]
[1722724016540,0.01590516,60718.0,60717.0,0.023]
[1722724016967,0.01690516,60718.0,60717.0,0.033]
[1722724017789,0.01690516,60718.0,60717.0,0.86644589]
[1722724017985,0.002,60718.0,60717.0,1.19584289]
[1722724018181,0.001,60718.0,60717.0,1.19584289]
[1722724018610,0.002,60718.0,60717.0,1.20584289]
[1722724020512,0.002,60718.0,60717.0,0.043]
[1722724020833,0.84039337,60718.0,60717.0,0.02]
[1722724021047,0.51100237,60718.0,60717.0,0.02]
[1722724021218,0.51100237,60718.0,60717.0,0.020913]
[1722724021404,0.84039337,60718.0,60717.0,0.020913]
[1722724022128,0.94159337,60718.0,60717.0,0.020913]
[1722724023477,1.02169337,60718.0,60717.0,0.020913]
[1722724023856,1.35108437,60718.0,60717.0,0.020913]
[1722724024304,1.5662025,60718.0,60717.0,0.020913]
[1722724024477,1.74316038,60718.0,60717.0,0.020913]
[1722724024697,2.07255138,60718.0,60717.0,0.020913]
[1722724024870,1.97381689,60718.0,60717.0,0.020913]
[1722724025067,2.21833322,60718.0,60717.0,0.020913]
[1722724025267,2.19149845,60718.0,60717.0,0.010913]
[1722724025512,2.19149845,60718.0,60714.0,0.000913]
[1722724025513,1.492331,60715.0,60714.0,0.000913]
[1722724025684,2.13909057,60715.0,60714.0,0.000913]
[1722724025884,2.26793024,60715.0,60714.0,0.000913]
[1722724026127,2.14457418,60715.0,60714.0,0.000913]
[1722724026337,2.24321108,60715.0,60714.0,0.000913]
[1722724026926,2.24321205,60715.0,60714.0,0.000913]
[1722724027266,2.21852077,60715.0,60714.0,0.000913]
[1722724027622,1.96957895,60715.0,60714.0,0.000913]
[1722724027821,1.8413284,60715.0,60714.0,0.001913]
[1722724028047,1.79203057,60715.0,60714.0,0.001913]
[1722724028636,1.82987025,60715.0,60714.0,0.002913]
[1722724029074,1.07105625,60715.0,60714.0,0.002913]
[1722724029471,1.40046325,60715.0,60714.0,0.002913]
[1722724034790,1.07105625,60715.0,60714.0,0.002913]
[1722724034991,0.89055625,60715.0,60714.0,0.002913]
[1722724036036,0.87655625,60715.0,60714.0,0.001913]
[1722724037048,0.86455625,60715.0,60714.0,0.000913]
[1722724037252,0.87255625,60715.0,60714.0,0.001913]
[1722724037453,0.87255625,60715.0,60714.0,0.002913]
[1722724037454,0.88055625,60715.0,60714.0,0.002913]
[1722724039118,1.20996325,60715.0,60714.0,0.002913]
[1722724039728,0.55114925,60715.0,60714.0,0.002913]
[1722724040197,0.55114925,60715.0,60714.0,0.025913]
[1722724041131,0.05731213,60715.0,60714.0,0.102113]
[1722724041405,0.05731213,60715.0,60714.0,1.026745]
[1722724041539,0.04183968,60715.0,60714.0,1.52190889]
[1722724041973,0.016,60715.0,60714.0,1.52190889]
[1722724042177,0.008,60715.0,60714.0,1.52090889]
[1722724043033,0.329335,60729.0,60719.0,0.1787]
[1722724043240,0.164672,60727.0,60722.0,0.329367]
[1722724043414,0.164662,60731.0,60720.0,0.329379]
[1722724043634,0.164666,60729.0,60721.0,0.02457439]
[1722724043942,0.164668,60728.0,60726.0,0.00157439]
[1722724044118,0.164668,60728.0,60726.0,0.023]
[1722724044533,0.164668,60728.0,60724.0,0.164678]
[1722724044534,0.002,60727.0,60725.0,0.023]
[1722724044755,0.001,60727.0,60725.0,0.187676]
[1722724044984,0.164668,60728.0,60725.0,0.187676]
[1722724045174,0.164668,60728.0,60726.0,0.00157439]
[1722724045387,0.164671,60727.0,60725.0,0.023]
[1722724045577,0.166669,60728.0,60723.0,0.023]
[1722724045716,0.00172764,60728.0,60723.0,0.023]
[1722724046097,0.00172764,60728.0,60724.0,0.16625239]
[1722724046098,0.164671,60727.0,60724.0,0.16625239]
[1722724046294,0.164671,60727.0,60725.0,0.023]
[1722724046465,0.16639764,60728.0,60725.0,0.023]
[1722724046642,0.002,60728.0,60725.0,0.187675]
[1722724046886,0.001,60727.0,60725.0,0.187675]
[1722724047094,0.001,60727.0,60726.0,0.164674]
[1722724047417,0.001,60727.0,60726.0,0.187674]
[1722724047617,0.002,60728.0,60726.0,0.187674]
[1722724047793,0.166668,60728.0,60727.0,0.023]
[1722724048005,0.168668,60728.0,60727.0,0.023]
[1722724048215,0.164672,60727.0,60723.0,0.16468]
[1722724048420,0.164674,60726.0,60724.0,0.02457439]
[1722724048641,0.164674,60726.0,60724.0,0.023]
[1722724048848,0.165671,60727.0,60724.0,0.023]
[1722724049249,0.165671,60727.0,60724.0,0.187679]
[1722724049473,0.19150192,60727.0,60724.0,0.187679]
[1722724049669,0.02783092,60727.0,60726.0,0.494022]
[1722724049893,0.02583092,60727.0,60726.0,0.517022]
[1722724050109,0.02683092,60727.0,60726.0,1.349318]
[1722724050245,0.02783092,60727.0,60726.0,1.349318]
[1722724050451,0.02783092,60727.0,60726.0,1.01997]
[1722724050452,0.02683092,60727.0,60726.0,1.01997]
[1722724050807,0.001,60727.0,60726.0,0.023]
[1722724050945,0.001,60727.0,60725.0,0.187675]
[1722724051449,0.164666,60729.0,60726.0,0.00157439]
[1722724051725,0.164671,60727.0,60726.0,0.00357439]
[1722724051900,0.164671,60727.0,60726.0,0.025]
[1722724052078,0.261869,60728.0,60726.0,0.025]
[1722724052290,0.164671,60727.0,60726.0,0.002]
[1722724052464,0.18022176,60727.0,60726.0,0.005]
[1722724052662,0.18022176,60727.0,60726.0,0.025]
[1722724053000,0.18122176,60727.0,60726.0,0.025]
[1722724053208,0.18122176,60727.0,60726.0,0.002]
[1722724053735,0.18122176,60727.0,60724.0,0.187679]
[1722724053946,0.18122176,60727.0,60725.0,0.002]
[1722724054375,0.18122176,60727.0,60725.0,0.164674]
[1722724054376,0.01738076,60727.0,60725.0,0.164674]
[1722724054577,0.01738076,60727.0,60726.0,0.023]
[1722724054745,0.01838076,60727.0,60726.0,0.023]
[1722724054922,0.01838076,60727.0,60726.0,0.187674]
[1722724055128,0.01738076,60727.0,60726.0,0.187674]
[1722724055324,0.01738076,60727.0,60726.0,0.023]
[1722724055525,0.01738076,60727.0,60726.0,0.164674]
[1722724055866,0.01738076,60727.0,60726.0,0.187674]
[1722724056085,0.01738076,60727.0,60726.0,0.594822]
[1722724056284,0.01738076,60727.0,60726.0,0.92417]
[1722724056458,0.00283,60727.0,60726.0,0.92417]
[1722724056662,0.00083,60727.0,60726.0,0.92417]
[1722724057083,0.00283,60727.0,60726.0,0.92417]
[1722724057457,0.00183,60727.0,60726.0,0.92417]
[1722724057886,0.02765929,60727.0,60726.0,0.92617]
[1722724058304,0.00183,60727.0,60726.0,0.92617]
[1722724058703,0.00183,60727.0,60726.0,0.84837]
[1722724059118,0.00183,60727.0,60726.0,0.85137]
[1722724061288,0.01728543,60727.0,60726.0,0.85137]
[1722724061457,0.00183,60727.0,60726.0,0.85137]
[1722724061682,0.01701285,60727.0,60726.0,0.85137]
[1722724061858,0.00155742,60727.0,60726.0,0.85137]
[1722724062054,0.01701285,60727.0,60726.0,0.85137]
[1722724063622,0.01701285,60727.0,60726.0,0.028]
[1722724063737,0.09341285,60727.0,60726.0,0.028]
[1722724063947,0.25808385,60727.0,60726.0,0.028]
[1722724064150,0.09341285,60727.0,60726.0,0.028]
[1722724064556,0.09313944,60727.0,60726.0,0.028]
[1722724065013,0.09313944,60727.0,60726.0,0.192674]
[1722724065372,0.09313944,60727.0,60726.0,0.028]
[1722724066135,0.25168059,60727.0,60726.0,0.028]
[1722724066339,0.08700959,60727.0,60726.0,0.028]
[1722724066516,0.58102259,60727.0,60726.0,0.028]
[1722724066918,0.67622259,60727.0,60726.0,0.028]
[1722724067119,0.67622259,60727.0,60726.0,0.026]
[1722724067520,0.67622259,60727.0,60726.0,0.023]
[1722724067835,0.164676,60726.0,60723.0,0.023]
[1722724068075,0.18220959,60727.0,60723.0,0.023]
[1722724068221,0.00931514,60725.0,60723.0,0.164681]
[1722724068420,0.164674,60726.0,60724.0,0.023]
[1722724069642,0.164676,60725.0,60724.0,0.023]
[1722724069841,0.164676,60725.0,60721.0,0.164686]
[1722724070164,0.164676,60725.0,60722.0,0.023]
[1722724071589,0.344282,60723.0,60722.0,0.1]
[1722724071797,0.849646,60723.0,60722.0,0.101]
[1722724072007,1.17901,60723.0,60722.0,0.101]
[1722724073191,1.508374,60723.0,60722.0,0.1]
[1722724073393,1.508374,60723.0,60722.0,0.101]
[1722724073611,1.53420673,60723.0,60722.0,0.101]
[1722724073815,1.53420673,60723.0,60722.0,0.1]
[1722724074024,1.53920673,60723.0,60722.0,0.1]
[1722724074192,1.53420673,60723.0,60722.0,0.1]
[1722724074391,1.53920673,60723.0,60722.0,0.1]
[1722724074600,0.3818417,60723.0,60722.0,0.101]
[1722724074821,0.03783273,60723.0,60722.0,0.124]